fUSD/lending_fUSD_20260208
["ID","MTS","AMOUNT","RATE_DAILY","PERIOD"]
[404798876,1770576641204,-150.0,0.00042024,30]
[404798877,1770576641213,-150.0,0.00042024,30]
[404798878,1770576641223,-150.0,0.0004213,30]
[404798879,1770576641232,-150.0,0.00042154,30]
[404798880,1770576641241,-150.0,0.00042154,30]
[404798881,1770576641251,-150.0,0.00042235,30]
[404798882,1770576641260,-150.0,0.00042245,30]
[404798883,1770576641270,-150.0,0.00042301,30]
[404798884,1770576641280,-150.0,0.0004234,30]
[404798885,1770576641290,-150.0,0.0004234,30]
[404798886,1770576641299,-200.0,0.0004236,2]
[404798887,1770576641308,-150.0,0.00042393,30]
[404798888,1770576641319,-151.0,0.000424,120]
[404798889,1770576641329,-150.0,0.00042415,30]
[404798890,1770576641339,-150.0,0.00042415,30]
[404798891,1770576641349,-150.0,0.00042426,120]
[404798892,1770576641361,-169.75030081,0.00042438,30]
[404798893,1770576641370,-150.0,0.00042445,30]
[404798894,1770576641380,-616.0,0.00042453,2]
[404798895,1770576641391,-3484.0,0.00042453,2]
[404798896,1770576641401,-1335.0,0.00042453,2]
[404798897,1770576641410,-917.0,0.00042453,2]
[404798898,1770576641419,-3255.0,0.00042453,2]
[404798899,1770576641429,-412.0,0.00042453,2]
[404798900,1770576641438,-10000.0,0.00042466,120]
[404798901,1770576641448,-150.0,0.00042467,30]
[404798902,1770576641458,-150.0,0.00042551,30]
[404798903,1770576641467,-150.0,0.00042577,30]
[404798904,1770576641477,-539.29236495,0.00042592,60]
[404798905,1770576641486,-1331.15020434,0.00042621,8]
[404798906,1770576641495,-332.91168728,0.00042641,2]
[404798907,1770576641506,-150.0,0.00042656,30]
[404798908,1770576641515,-150.0,0.00042656,30]
[404798909,1770576641525,-150.0,0.00042675,30]
[404798910,1770576641534,-150.0,0.00042675,30]
[404798911,1770576641543,-150.0,0.00042688,30]
[404798912,1770576641553,-780.35191,0.000427,20]
[404798913,1770576641563,-8882.12,0.000427,2]
[404798914,1770576641572,-800.0,0.0004274,7]
[404798915,1770576641582,-2827.0,0.0004275,16]
[404798916,1770576641592,-150.0,0.00042761,30]
[404798917,1770576641601,-150.0,0.00042761,30]
[404798918,1770576641611,-150.0,0.00042761,30]
[404798919,1770576641621,-152.0,0.00042826,3]
[404798920,1770576641630,-151.0,0.00042836,120]
[404798921,1770576641640,-49932.0,0.00042839,30]
[404798922,1770576641649,-150.0,0.00042854,30]
[404798923,1770576641660,-150.0,0.00042867,30]
[404798924,1770576641670,-4555.29193256,0.00042882,7]
[404798925,1770576641679,-827.0,0.00042887,16]
[404798926,1770576641688,-164.0,0.00042894,16]
[404798927,1770576641697,-2827.0,0.00042894,16]
[404798928,1770576641707,-8882.12,0.000429,14]
[404798929,1770576641716,-16511.11257832,0.000429,120]
[404798930,1770576641726,-169.75030081,0.00042904,30]
[404798931,1770576641736,-150.0,0.00042909,30]
[404798932,1770576641745,-196.0,0.00042924,16]
[404798933,1770576641755,-200.0,0.00042932,2]
[404798934,1770576641764,-150.0,0.00042935,30]
[404798935,1770576641773,-150.0,0.00042935,30]
[404798936,1770576641782,-150.0,0.00042972,30]
[404798937,1770576641793,-150.0,0.00042972,30]
[404798938,1770576641802,-300.0,0.00042973,5]
[404798939,1770576641811,-150.0,0.00042973,10]
[404798940,1770576641823,-212.0,0.00043,30]
[404798941,1770576641832,-153.0,0.00043,120]
[404798942,1770576641841,-2000.0,0.00043,7]
[404798943,1770576641851,-150.0,0.00043077,30]
[404798944,1770576641862,-1818.35964258,0.00043094,2]
[404798945,1770576641871,-151.0,0.000431,120]
[404798946,1770576641880,-164.0,0.0004312,16]
[404798947,1770576641889,-150.0,0.0004313,30]
[404798948,1770576641899,-150.0,0.0004313,30]
[404798949,1770576641909,-150.0,0.0004313,30]
[404798950,1770576641919,-150.0,0.0004313,30]
[404798951,1770576641928,-164.0,0.00043151,16]
[404798952,1770576641937,-150.0,0.00043183,30]
[404798953,1770576641946,-150.0,0.00043195,30]
[404798954,1770576641956,-150.0,0.00043195,30]
[404798955,1770576641965,-2699.0,0.00043206,16]
[404798956,1770576641975,-49932.0,0.00043281,30]
[404798957,1770576641984,-150.0,0.00043288,30]
[404798958,1770576641994,-150.0,0.00043288,30]
[404798959,1770576642003,-636.0,0.00043318,120]
[404798960,1770576642012,-200.0,0.00043336,120]
[404798961,1770576642022,-150.0,0.00043351,30]
[404798962,1770576642031,-169.75030081,0.0004337,30]
[404798963,1770576642041,-150.0,0.00043393,30]
[404798964,1770576642051,-265.06963232,0.00043398,8]
[404798965,1770576642061,-152.52520712,0.000434,120]
[404798966,1770576642071,-150.0,0.00043407,30]
[404798967,1770576642080,-150.0,0.00043455,30]
[404798968,1770576642089,-150.0,0.00043455,30]
[404798969,1770576642099,-300.090238,0.00043475,117]
[404798970,1770576642109,-150.0,0.00043499,30]
[404798971,1770576642119,-150.0,0.00043499,30]
[404798972,1770576642131,-49183.47,0.000435,120]
[404798973,1770576642140,-200.461407,0.000435,25]
[404798974,1770576642150,-300.51862815,0.00043521,5]
[404798975,1770576642159,-251.3634381,0.00043521,10]
[404798976,1770576642169,-840.0,0.00043524,16]
[404798977,1770576642178,-150.0,0.00043564,2]
[404798978,1770576642187,-150.0,0.00043564,2]
[404798979,1770576642197,-4671.45366529,0.00043564,2]
[404798980,1770576642206,-3445.92703626,0.00043564,2]
[404798981,1770576642216,-150.0,0.00043564,2]
[404798982,1770576642226,-13413.59595424,0.00043564,2]
[404798983,1770576642237,-150.0,0.00043572,30]
[404798984,1770576642251,-150.0,0.00043604,30]
[404798985,1770576642265,-150.0,0.00043604,30]
[404798986,1770576642276,-332.91168728,0.00043654,2]
[404798987,1770576642286,-150.0,0.00043656,30]
[404798988,1770576642296,-1055.36341632,0.00043656,30]
[404798989,1770576642306,-150.0,0.00043656,30]
[404798990,1770576642319,-3240.89898856,0.00043656,30]
[404798991,1770576642504,-150.0,0.00043656,30]
[404798992,1770576642515,-748.98175906,0.00043656,30]
[404798993,1770576642525,-8659.0,0.00043679,7]
[404798994,1770576642535,-150.0,0.00043683,30]
[404798995,1770576642545,-150.0,0.00043709,30]
[404798996,1770576642554,-150.0,0.00043716,30]
[404798997,1770576642564,-150.0,0.00043716,30]
[404798998,1770576642574,-49932.0,0.00043723,30]
[404798999,1770576642583,-25000.0,0.00043729,15]
[404799000,1770576642592,-162.38812646,0.00043732,120]
[404799001,1770576642602,-655.64818807,0.00043735,15]
[404799002,1770576642612,-25000.0,0.00043738,15]
[404799003,1770576642621,-25000.0,0.00043747,15]
[404799004,1770576642631,-1000.0,0.00043749,120]
[404799005,1770576642641,-972.91760625,0.0004375,120]
[404799006,1770576642650,-1288.09761471,0.0004375,7]
[404799007,1770576642659,-200.0,0.0004375,7]
[404799008,1770576642668,-380.0,0.00043751,2]
[404799009,1770576642678,-25000.0,0.00043756,15]
[404799010,1770576642687,-25000.0,0.00043756,15]
[404799011,1770576642696,-25000.0,0.00043765,15]
[404799012,1770576642706,-25000.0,0.00043765,15]
[404799013,1770576642716,-25000.0,0.00043773,15]
[404799014,1770576642725,-25000.0,0.00043773,15]
[404799015,1770576642734,-25000.0,0.00043782,15]
[404799016,1770576642743,-25000.0,0.00043782,15]
[404799017,1770576642752,-151.0,0.00043788,120]
[404799018,1770576642761,-25000.0,0.00043791,15]
[404799019,1770576642771,-25000.0,0.00043791,15]
[404799020,1770576642780,-150.0,0.00043794,30]
[404799021,1770576642789,-25000.0,0.000438,15]
[404799022,1770576642799,-25000.0,0.000438,15]
[404799023,1770576642812,-150.0,0.000438,72]
[404799024,1770576642821,-150.0,0.000438,70]
[404799025,1770576642831,-25000.0,0.00043809,15]
[404799026,1770576642841,-25000.0,0.00043809,15]
[404799027,1770576642850,-150.0,0.00043815,30]
[404799028,1770576642860,-25000.0,0.00043817,15]
[404799029,1770576642870,-25000.0,0.00043817,15]
[404799030,1770576642880,-554.87567158,0.00043826,7]
[404799031,1770576642889,-25000.0,0.00043826,15]
[404799032,1770576642899,-25000.0,0.00043826,15]
[404799033,1770576642909,-151.0,0.00043832,120]
[404799034,1770576642919,-151.0,0.00043832,120]
[404799035,1770576642928,-161.78,0.00043834,7]
[404799036,1770576642937,-149323.49690166,0.00043835,56]
[404799037,1770576642947,-9092.66790244,0.00043835,15]
[404799038,1770576642957,-25000.0,0.00043835,15]
[404799039,1770576642967,-225.617743,0.00043835,120]
[404799040,1770576642976,-151.0,0.00043835,60]
[404799041,1770576642986,-500.0,0.00043835,120]
[404799042,1770576642995,-500.0,0.00043835,120]
[404799043,1770576643007,-500.0,0.00043835,120]
[404799044,1770576643016,-527.3580023,0.00043835,120]
[404799045,1770576643025,-500.0,0.00043835,120]
[404799046,1770576643035,-500.0,0.00043835,2]
[404799047,1770576643044,-500.0,0.00043835,2]
[404799048,1770576643054,-500.0,0.00043835,2]
[404799049,1770576643065,-500.0,0.00043835,2]
[404799050,1770576643075,-500.0,0.00043835,2]
[404799051,1770576643086,-500.0,0.00043835,2]
[404799052,1770576643096,-500.0,0.00043835,2]
[404799053,1770576643107,-500.0,0.00043835,2]
[404799054,1770576643116,-500.0,0.00043835,2]
[404799055,1770576643125,-500.0,0.00043835,2]
[404799056,1770576643135,-500.0,0.00043835,120]
[404799057,1770576643146,-500.0,0.00043835,120]
[404799058,1770576643156,-500.0,0.00043835,120]
[404799059,1770576643166,-500.0,0.00043835,120]
[404799060,1770576643176,-500.0,0.00043835,120]
[404799061,1770576643190,-500.0,0.00043835,120]
[404799062,1770576643201,-511.15217907,0.00043835,120]
[404799063,1770576643210,-500.0,0.00043835,120]
[404799064,1770576643220,-500.0,0.00043835,120]
[404799065,1770576643230,-500.0,0.00043835,120]
[404799066,1770576643241,-500.0,0.00043835,120]
[404799067,1770576643252,-500.0,0.00043835,120]
[404799068,1770576643262,-500.0,0.00043835,120]
[404799069,1770576643274,-500.0,0.00043835,120]
[404799070,1770576643284,-500.0,0.00043835,120]
[404799071,1770576643294,-500.0,0.00043835,120]
[404799072,1770576643304,-500.0,0.00043835,120]
[404799073,1770576643316,-500.0,0.00043835,120]
[404799074,1770576643328,-500.0,0.00043835,120]
[404799075,1770576643338,-513.24541406,0.00043835,120]
[404799076,1770576643347,-500.0,0.00043835,120]
[404799077,1770576643358,-500.0,0.00043835,120]
[404799078,1770576643368,-25000.0,0.00043835,15]
[404799079,1770576643378,-500.0,0.00043835,120]
[404799080,1770576643388,-527.05483782,0.00043835,120]
[404799081,1770576643399,-500.0,0.00043835,120]
[404799082,1770576643409,-500.0,0.00043835,120]
[404799083,1770576643419,-500.0,0.00043835,120]
[404799084,1770576643429,-500.0,0.00043835,120]
[404799085,1770576643439,-514.80240291,0.00043835,120]
[404799086,1770576643448,-500.0,0.00043835,120]
[404799087,1770576643458,-512.83628163,0.00043835,120]
[404799088,1770576643468,-500.0,0.00043835,120]
[404799089,1770576643477,-500.0,0.00043835,120]
[404799090,1770576643487,-510.48994209,0.00043835,120]
[404799091,1770576643497,-503.46167375,0.00043835,120]
[404799092,1770576643506,-500.0,0.00043835,120]
[404799093,1770576643516,-500.0,0.00043835,120]
[404799094,1770576643526,-500.0,0.00043835,120]
[404799095,1770576643535,-500.0,0.00043835,120]
[404799097,1770576643545,-500.0,0.00043835,120]
[404799100,1770576643556,-500.0,0.00043835,120]
[404799101,1770576643566,-565.83514836,0.00043835,120]
[404799102,1770576643578,-528.2785684,0.00043835,120]
[404799103,1770576643588,-500.0,0.00043835,120]
[404799104,1770576643597,-500.0,0.00043835,120]
[404799105,1770576643606,-534.55632879,0.00043835,120]
[404799106,1770576643616,-504.47298071,0.00043835,120]
[404799108,1770576643625,-500.0,0.00043835,120]
[404799111,1770576643635,-500.0,0.00043835,120]
[404799113,1770576643645,-193.42728764,0.00043835,120]
[404799114,1770576643654,-523.0,0.00043835,120]
[404799115,1770576643663,-500.0,0.00043835,120]
[404799116,1770576643674,-502.64347027,0.00043835,120]
[404799117,1770576643683,-472.96867078,0.00043835,120]
[404799118,1770576643693,-500.0,0.00043835,120]
[404799119,1770576643702,-500.0,0.00043835,120]
[404799121,1770576643712,-500.0,0.00043835,120]
[404799122,1770576643721,-500.0,0.00043835,120]
[404799123,1770576643731,-509.63605329,0.00043835,120]
[404799124,1770576643741,-464.38270883,0.00043835,120]
[404799125,1770576643749,-515.21784225,0.00043835,120]
[404799126,1770576643759,-500.0,0.00043835,7]
[404799127,1770576643768,-466.23377766,0.00043835,7]
[404799128,1770576643778,-500.0,0.00043835,120]
[404799129,1770576643787,-500.0,0.00043835,120]
[404799130,1770576643796,-500.0,0.00043835,120]
[404799131,1770576643805,-500.0,0.00043835,120]
[404799132,1770576643815,-530.59188132,0.00043835,120]
[404799133,1770576643824,-500.0,0.00043835,120]
[404799134,1770576643833,-500.0,0.00043835,120]
[404799135,1770576643842,-500.0,0.00043835,120]
[404799136,1770576643851,-563.64286534,0.00043835,120]
[404799137,1770576643860,-500.0,0.00043835,120]
[404799138,1770576643870,-500.0,0.00043835,120]
[404799139,1770576643879,-500.0,0.00043835,120]
[404799140,1770576643889,-500.0,0.00043835,120]
[404799141,1770576643898,-515.39872804,0.00043835,120]
[404799142,1770576643909,-503.19645681,0.00043835,120]
[404799143,1770576643920,-500.0,0.00043835,120]
[404799144,1770576643932,-500.0,0.00043835,120]
[404799145,1770576643943,-500.0,0.00043835,120]
[404799146,1770576643956,-500.0,0.00043835,120]
[404799147,1770576643967,-500.0,0.00043835,120]
[404799148,1770576643976,-500.0,0.00043835,120]
[404799149,1770576643986,-500.0,0.00043835,120]
[404799150,1770576643996,-500.0,0.00043835,120]
[404799151,1770576644007,-500.0,0.00043835,120]
[404799152,1770576644018,-500.0,0.00043835,120]
[404799153,1770576644030,-500.0,0.00043835,120]
[404799154,1770576644039,-500.0,0.00043835,120]
[404799155,1770576644050,-500.0,0.00043835,120]
[404799156,1770576644060,-500.0,0.00043835,120]
[404799157,1770576644072,-500.0,0.00043835,120]
[404799158,1770576644082,-500.0,0.00043835,120]
[404799159,1770576644092,-500.0,0.00043835,120]
[404799160,1770576644102,-500.0,0.00043835,120]
[404799161,1770576644113,-500.0,0.00043835,120]
[404799162,1770576644122,-500.0,0.00043835,120]
[404799163,1770576644133,-500.0,0.00043835,120]
[404799164,1770576644142,-550.45774297,0.00043835,120]
[404799165,1770576644151,-500.0,0.00043835,120]
[404799166,1770576644162,-500.0,0.00043835,120]
[404799167,1770576644173,-500.0,0.00043835,120]
[404799168,1770576644183,-469.55769236,0.00043835,120]
[404799169,1770576644193,-195.62835296,0.00043835,120]
[404799170,1770576644206,-500.0,0.00043835,120]
[404799171,1770576644215,-500.0,0.00043835,120]
[404799172,1770576644226,-500.07778973,0.00043835,120]
[404799173,1770576644236,-469.55111245,0.00043835,120]
[404799174,1770576644245,-500.0,0.00043835,120]
[404799175,1770576644255,-500.0,0.00043835,120]
[404799176,1770576644264,-500.0,0.00043835,120]
[404799177,1770576644274,-500.0,0.00043835,120]
[404799178,1770576644284,-500.0,0.00043835,120]
[404799179,1770576644294,-500.0,0.00043835,120]
[404799180,1770576644304,-500.0,0.00043835,120]
[404799181,1770576644319,-537.37145192,0.00043835,120]
[404799182,1770576644330,-500.0,0.00043835,120]
[404799183,1770576644343,-500.0,0.00043835,120]
[404799184,1770576644352,-500.0,0.00043835,120]
[404799185,1770576644365,-500.0,0.00043835,120]
[404799186,1770576644374,-500.0,0.00043835,120]
[404799187,1770576644387,-500.0,0.00043835,120]
[404799188,1770576644396,-301.75894164,0.00043835,120]
[404799189,1770576644406,-563.86143806,0.00043835,120]
[404799190,1770576644415,-500.0,0.00043835,120]
[404799191,1770576644424,-500.0,0.00043835,120]
[404799192,1770576644435,-571.43939164,0.00043835,120]
[404799193,1770576644444,-500.0,0.00043835,120]
[404799194,1770576644454,-500.0,0.00043835,120]
[404799195,1770576644463,-500.0,0.00043835,120]
[404799196,1770576644473,-500.0,0.00043835,120]
[404799197,1770576644482,-500.0,0.00043835,120]
[404799198,1770576644492,-500.0,0.00043835,120]
[404799199,1770576644502,-541.17881066,0.00043835,120]
[404799200,1770576644512,-500.0,0.00043835,120]
[404799201,1770576644521,-500.0,0.00043835,120]
[404799202,1770576644531,-500.0,0.00043835,120]
[404799203,1770576644541,-500.0,0.00043835,120]
[404799204,1770576644551,-500.0,0.00043835,120]
[404799205,1770576644562,-500.0,0.00043835,120]
[404799206,1770576644572,-500.0,0.00043835,120]
[404799207,1770576644583,-577.70048709,0.00043835,120]
[404799208,1770576644593,-500.0,0.00043835,120]
[404799209,1770576644604,-500.0,0.00043835,120]
[404799210,1770576644616,-500.0,0.00043835,120]
[404799211,1770576644626,-500.0,0.00043835,120]
[404799212,1770576644635,-500.0,0.00043835,120]
[404799213,1770576644645,-500.0,0.00043835,120]
[404799214,1770576644654,-500.0,0.00043835,120]
[404799215,1770576644664,-500.0,0.00043835,120]
[404799216,1770576644673,-500.0,0.00043835,120]
[404799217,1770576644684,-500.0,0.00043835,120]
[404799218,1770576644693,-500.0,0.00043835,120]
[404799219,1770576644704,-603.69467804,0.00043835,120]
[404799220,1770576644714,-500.0,0.00043835,120]
[404799221,1770576644724,-500.0,0.00043835,120]
[404799222,1770576644735,-500.0,0.00043835,120]
[404799223,1770576644746,-500.0,0.00043835,2]
[404799224,1770576644757,-500.0,0.00043835,120]
[404799225,1770576644767,-500.0,0.00043835,2]
[404799226,1770576644777,-500.0,0.00043835,120]
[404799227,1770576644787,-500.0,0.00043835,2]
[404799228,1770576644798,-500.0,0.00043835,120]
[404799229,1770576644808,-500.0,0.00043835,2]
[404799230,1770576644819,-500.0,0.00043835,120]
[404799231,1770576644830,-500.0,0.00043835,2]
[404799232,1770576644839,-551.46429683,0.00043835,120]
[404799233,1770576644849,-500.0,0.00043835,2]
[404799234,1770576644861,-500.0,0.00043835,2]
[404799235,1770576644872,-500.0,0.00043835,2]
[404799236,1770576644882,-500.0,0.00043835,2]
[404799237,1770576644892,-500.0,0.00043835,2]
[404799238,1770576644902,-500.0,0.00043835,2]
[404799239,1770576644913,-500.0,0.00043835,2]
[404799240,1770576644922,-500.0,0.00043835,2]
[404799241,1770576644931,-500.0,0.00043835,2]
[404799242,1770576644941,-398.59085793,0.00043835,2]
[404799243,1770576645004,-500.0,0.00043835,120]
[404799244,1770576645013,-500.0,0.00043835,120]
[404799245,1770576645023,-500.0,0.00043835,120]
[404799246,1770576645032,-500.0,0.00043835,120]
[404799247,1770576645041,-500.0,0.00043835,120]
[404799248,1770576645051,-500.0,0.00043835,120]
[404799249,1770576645060,-500.0,0.00043835,120]
[404799250,1770576645078,-500.0,0.00043835,120]
[404799251,1770576645089,-500.0,0.00043835,120]
[404799252,1770576645098,-500.0,0.00043835,120]
[404799253,1770576645107,-284.72299724,0.00043835,120]
[404799254,1770576645120,-500.0,0.00043835,120]
[404799255,1770576645129,-500.0,0.00043835,120]
[404799256,1770576645139,-573.29,0.00043835,120]
[404799257,1770576645148,-500.0,0.00043835,120]
[404799258,1770576645159,-573.29,0.00043835,120]
[404799259,1770576645168,-500.0,0.00043835,120]
[404799260,1770576645178,-573.29,0.00043835,120]
[404799261,1770576645187,-573.29,0.00043835,120]
[404799262,1770576645196,-573.29,0.00043835,120]
[404799263,1770576645206,-573.29,0.00043835,120]
[404799264,1770576645215,-573.29,0.00043835,120]
[404799265,1770576645225,-573.29,0.00043835,120]
[404799266,1770576645234,-573.29,0.00043835,120]
[404799267,1770576645243,-583.63605762,0.00043835,120]
[404799268,1770576645254,-573.29,0.00043835,120]
[404799269,1770576645265,-573.29,0.00043835,120]
[404799270,1770576645275,-573.29,0.00043835,120]
[404799271,1770576645285,-573.29,0.00043835,120]
[404799272,1770576645295,-573.29,0.00043835,120]
[404799273,1770576645305,-573.29,0.00043835,120]
[404799274,1770576645314,-573.29,0.00043835,120]
[404799275,1770576645327,-573.29,0.00043835,120]
[404799276,1770576645337,-500.0,0.00043835,120]
[404799277,1770576645347,-573.29,0.00043835,120]
[404799278,1770576645356,-500.0,0.00043835,120]
[404799279,1770576645368,-573.29,0.00043835,120]
[404799280,1770576645378,-500.0,0.00043835,120]
[404799281,1770576645387,-573.29,0.00043835,120]
[404799282,1770576645397,-500.0,0.00043835,120]
[404799283,1770576645407,-573.29,0.00043835,120]
[404799284,1770576645416,-529.4937605,0.00043835,120]
[404799285,1770576645426,-573.29,0.00043835,120]
[404799286,1770576645435,-573.29,0.00043835,120]
[404799287,1770576645444,-573.47516622,0.00043835,120]
[404799288,1770576645454,-500.0,0.00043835,90]
[404799289,1770576645464,-500.0,0.00043835,90]
[404799290,1770576645474,-500.0,0.00043835,90]
[404799291,1770576645483,-500.0,0.00043835,90]
[404799292,1770576645492,-540.15303708,0.00043835,120]
[404799293,1770576645502,-500.0,0.00043835,90]
[404799294,1770576645511,-500.0,0.00043835,90]
[404799295,1770576645520,-500.0,0.00043835,90]
[404799296,1770576645530,-500.0,0.00043835,90]
[404799297,1770576645539,-500.0,0.00043835,90]
[404799298,1770576645549,-500.0,0.00043835,90]
[404799299,1770576645558,-500.0,0.00043835,90]
[404799300,1770576645568,-500.0,0.00043835,90]
[404799301,1770576645577,-500.0,0.00043835,90]
[404799302,1770576645587,-500.0,0.00043835,90]
[404799303,1770576645598,-500.0,0.00043835,90]
[404799304,1770576645607,-1118.28,0.00043835,120]
[404799305,1770576645616,-340.04339798,0.00043835,90]
[404799306,1770576645626,-1118.28,0.00043835,120]
[404799307,1770576645635,-1118.28,0.00043835,120]
[404799308,1770576645645,-1118.28,0.00043835,120]
[404799309,1770576645654,-1118.28,0.00043835,120]
[404799310,1770576645663,-1118.28,0.00043835,120]
[404799311,1770576645672,-1118.28,0.00043835,120]
[404799312,1770576645682,-1118.28,0.00043835,120]
[404799313,1770576645691,-1118.28,0.00043835,120]
[404799314,1770576645700,-1118.28,0.00043835,120]
[404799315,1770576645710,-1118.28,0.00043835,120]
[404799316,1770576645719,-1118.28,0.00043835,120]
[404799317,1770576645728,-1118.28,0.00043835,120]
[404799318,1770576645738,-1118.28,0.00043835,120]
[404799319,1770576645747,-1118.28,0.00043835,120]
[404799321,1770576645756,-1118.28,0.00043835,120]
[404799323,1770576645765,-1118.28,0.00043835,120]
[404799324,1770576645774,-1118.28,0.00043835,120]
[404799325,1770576645783,-1118.28,0.00043835,120]
[404799326,1770576645792,-1118.28,0.00043835,120]
[404799327,1770576645801,-1118.28,0.00043835,120]
[404799328,1770576645810,-1118.28,0.00043835,120]
[404799330,1770576645819,-1118.28,0.00043835,120]
[404799332,1770576645828,-1118.36723891,0.00043835,120]
[404799334,1770576645837,-609.77,0.00043835,120]
[404799336,1770576645847,-609.77,0.00043835,120]
[404799338,1770576645856,-609.77,0.00043835,120]
[404799340,1770576645865,-609.77,0.00043835,120]
[404799341,1770576645875,-609.77,0.00043835,120]
[404799343,1770576645883,-609.77,0.00043835,120]
[404799345,1770576645893,-609.77,0.00043835,120]
[404799347,1770576645902,-609.77,0.00043835,120]
[404799349,1770576645911,-609.77,0.00043835,120]
[404799351,1770576645921,-609.77,0.00043835,120]
[404799353,1770576645932,-609.77,0.00043835,120]
[404799355,1770576645942,-609.77,0.00043835,120]
[404799357,1770576645953,-609.77,0.00043835,120]
[404799359,1770576645964,-609.77,0.00043835,120]
[404799361,1770576645974,-500.0,0.00043835,120]
[404799363,1770576645984,-609.77,0.00043835,120]
[404799365,1770576645999,-500.0,0.00043835,120]
[404799366,1770576646009,-609.77,0.00043835,120]
[404799367,1770576646019,-500.0,0.00043835,120]
[404799368,1770576646028,-609.77,0.00043835,120]
[404799369,1770576646037,-330.41545386,0.00043835,120]
[404799371,1770576646047,-609.77,0.00043835,120]
[404799374,1770576646057,-609.77,0.00043835,120]
[404799376,1770576646067,-609.77,0.00043835,120]
[404799378,1770576646076,-609.77,0.00043835,120]
[404799380,1770576646085,-609.77,0.00043835,120]
[404799382,1770576646095,-609.77,0.00043835,120]
[404799384,1770576646105,-609.90265513,0.00043835,120]
[404799386,1770576646115,-500.0,0.00043835,120]
[404799388,1770576646125,-513.12505812,0.00043835,120]
[404799390,1770576646135,-492.46470656,0.00043835,120]
[404799391,1770576646144,-500.0,0.00043835,120]
[404799392,1770576646153,-500.0,0.00043835,120]
[404799393,1770576646163,-500.0,0.00043835,120]
[404799394,1770576646172,-500.0,0.00043835,120]
[404799395,1770576646181,-500.0,0.00043835,120]
[404799396,1770576646195,-552.43191112,0.00043835,120]
[404799397,1770576646205,-589.35308249,0.00043835,120]
[404799398,1770576646214,-500.0,0.00043835,120]
[404799399,1770576646224,-500.0,0.00043835,120]
[404799400,1770576646233,-500.0,0.00043835,120]
[404799401,1770576646242,-500.0,0.00043835,120]
[404799402,1770576646251,-500.0,0.00043835,120]
[404799403,1770576646260,-500.0,0.00043835,120]
[404799404,1770576646269,-531.28753635,0.00043835,120]
[404799405,1770576646279,-500.0,0.00043835,120]
[404799406,1770576646288,-500.0,0.00043835,120]
[404799407,1770576646297,-500.0,0.00043835,120]
[404799408,1770576646307,-443.48198005,0.00043835,120]
[404799409,1770576646318,-500.0,0.00043835,120]
[404799410,1770576646329,-500.0,0.00043835,120]
[404799411,1770576646340,-500.0,0.00043835,120]
[404799412,1770576646350,-500.0,0.00043835,120]
[404799413,1770576646360,-500.0,0.00043835,120]
[404799414,1770576646369,-500.0,0.00043835,120]